bitfinex/quotes_SOLUSD_20230101
["timestamp","ask_amount","ask_price","bid_price","bid_amount"]
[1672556054093,76.61,9.8005,9.7949,17.34399413]
[1672556054524,76.03241467,9.8028,9.7949,17.34399413]
[1672556054525,40.0,9.801,9.7949,17.34399413]
[1672556054722,40.0,9.8008,9.7949,17.34399413]
[1672556054932,76.61,9.8007,9.7949,17.34399413]
[1672556055793,76.03241467,9.8028,9.7949,17.34399413]
[1672556055794,40.0,9.801,9.7949,17.34399413]
[1672556055990,40.0,9.8008,9.7949,17.34399413]
[1672556056319,40.0,9.8006,9.7949,17.34399413]
[1672556056516,40.0,9.8004,9.7949,17.34399413]
[1672556056719,76.61,9.8003,9.7949,17.34399413]
[1672556057377,40.0,9.8002,9.7949,17.34399413]
[1672556057556,40.0,9.8,9.7949,17.34399413]
[1672556057767,76.62,9.7999,9.7949,17.34399413]
[1672556058732,40.0,9.7998,9.7949,17.34399413]
[1672556058928,76.62,9.7997,9.7949,17.34399413]
[1672556060406,40.0,9.7996,9.7949,17.34399413]
[1672556060621,40.0,9.7994,9.7949,17.34399413]
[1672556060828,40.0,9.7958,9.7949,17.34399413]
[1672556061150,40.0,9.7958,9.7777,40.0]
[1672556061151,96.65,9.7957,9.7779,40.0]
[1672556061372,96.65,9.7957,9.7782,40.0]
[1672556061373,40.0,9.7956,9.7782,40.0]
[1672556061558,40.0,9.7954,9.7785,40.0]
[1672556061769,40.0,9.7952,9.7787,305.4]
[1672556061984,40.0,9.795,9.779,40.0]
[1672556062197,96.66,9.7949,9.7793,40.0]
[1672556062405,96.66,9.7949,9.7796,40.0]
[1672556062406,40.0,9.7948,9.7796,40.0]
[1672556062611,40.0,9.7946,9.7798,305.4]
[1672556062837,96.66,9.7945,9.78,305.4]
[1672556063049,40.0,9.7944,9.7802,345.4]
[1672556063260,40.0,9.7944,9.7805,40.0]
[1672556063261,40.0,9.7942,9.7805,40.0]
[1672556063575,40.0,9.7942,9.7808,40.0]
[1672556063576,40.0,9.794,9.7808,40.0]
[1672556063773,96.66,9.7939,9.7811,40.0]
[1672556063983,96.66,9.7939,9.7813,305.4]
[1672556064192,96.66,9.7939,9.7815,305.4]
[1672556064402,23.2031,9.7938,9.7818,40.0]
[1672556064626,76.67,9.7937,9.7821,40.0]
[1672556064828,76.67,9.7937,9.7823,305.4]
[1672556065038,99.8731,9.7937,9.7825,305.4]
[1672556065362,99.8731,9.7937,9.7827,345.4]
[1672556065553,40.0,9.7935,9.7829,305.4]
[1672556065758,40.0,9.7933,9.7831,345.4]
[1672556065975,76.67,9.7932,9.7834,40.0]
[1672556066197,76.67,9.7932,9.7836,305.4]
[1672556066401,76.67,9.7932,9.7838,305.4]
[1672556066630,76.67,9.7934,9.7841,40.0]
[1672556066821,40.0,9.7933,9.7842,76.74]
[1672556067024,76.67,9.7932,9.7838,140.3278]
[1672556067355,40.0,9.7931,9.7838,140.3278]
[1672556067565,40.0,9.7929,9.7839,23.8703]
[1672556067753,24.2814,9.7935,9.784,40.0]
[1672556067754,76.67,9.7928,9.784,40.0]
[1672556067962,76.67,9.7934,9.784,40.0]
[1672556068177,76.67,9.7934,9.7842,40.0]
[1672556068839,76.67,9.7934,9.7843,23.8703]
[1672556069018,76.67,9.7934,9.7844,40.0]
[1672556069453,76.67,9.7934,9.7845,23.8703]
[1672556070090,76.67,9.7934,9.7846,23.8703]
[1672556070824,76.67,9.7934,9.7847,24.1092]
[1672556071033,76.67,9.7934,9.7848,40.0]
[1672556071251,76.67,9.7934,9.7848,64.1092]
[1672556071868,76.67,9.7934,9.7849,24.1092]
[1672556072417,76.67,9.7934,9.785,24.1092]
[1672556073037,76.67,9.7934,9.7851,24.1092]
[1672556073681,40.0,9.7933,9.7852,24.1092]
[1672556073885,40.0,9.7931,9.7852,24.1092]
[1672556074097,40.0,9.7929,9.7852,24.1092]
[1672556074415,76.67,9.7928,9.7853,24.9261]
[1672556075365,40.0,9.7927,9.7853,24.9261]
[1672556075554,76.67,9.7926,9.7853,24.9261]
[1672556076201,40.0,9.7925,9.7853,24.9261]
[1672556076416,76.68,9.7924,9.7853,24.9261]
[1672556076729,76.67,9.7932,9.7853,24.9261]
[1672556077041,76.67,9.7934,9.7854,17.49267596]
[1672556077572,76.67,9.7934,9.7855,23.4455]
[1672556078077,76.67,9.7934,9.7856,23.4455]
[1672556078703,76.67,9.7934,9.7854,17.49267596]
[1672556078704,76.67,9.7934,9.7857,23.4455]
[1672556079362,40.0,9.7933,9.7858,23.4455]
[1672556079556,76.67,9.7932,9.7858,23.4455]
[1672556079760,40.0,9.7931,9.7858,23.4455]
[1672556079966,40.0,9.7929,9.7858,23.4455]
[1672556080201,40.0,9.7927,9.7858,23.4455]
[1672556080509,40.0,9.7925,9.7858,23.4455]
[1672556080699,76.68,9.7924,9.7858,23.4455]
[1672556080907,40.0,9.7923,9.7859,17.47516265]
[1672556081249,40.0,9.7921,9.7859,17.47516265]
[1672556081447,40.0,9.7919,9.7859,17.47516265]
[1672556081653,40.0,9.7917,9.7859,17.47516265]
[1672556081863,76.68,9.7916,9.7859,17.47516265]
[1672556083334,40.0,9.7915,9.7859,17.47516265]
[1672556083544,76.68,9.7914,9.7859,17.47516265]
[1672556083761,40.0,9.7913,9.7859,17.47516265]
[1672556083977,40.0,9.7911,9.7859,17.47516265]
[1672556084196,76.69,9.791,9.7859,17.47516265]
[1672556084621,76.69,9.7912,9.7859,17.47516265]
[1672556085019,304.29142835,9.8035,9.7859,17.47516265]
[1672556085020,76.68,9.7914,9.7859,17.47516265]
[1672556085358,76.67,9.7928,9.786,40.0]
[1672556085560,40.0,9.7998,9.786,40.0]
[1672556085561,76.67,9.7934,9.786,40.0]
[1672556085775,76.67,9.7938,9.786,40.0]
[1672556085992,76.67,9.7938,9.7861,17.47202985]
[1672556086306,40.0,9.7975,9.7861,17.47202985]
[1672556086307,76.67,9.7934,9.7862,40.0]
[1672556086497,76.67,9.7934,9.7864,40.0]
[1672556086705,40.0,9.7975,9.7864,40.0]
[1672556086706,76.67,9.7938,9.7864,40.0]
[1672556089131,76.67,9.7938,9.7865,17.46576463]
[1672556090594,76.03241467,9.8054,9.7865,17.46576463]
[1672556090595,76.03241467,9.8054,9.7866,58.85921813]
[1672556090805,24.4194,9.8039,9.7867,399.12]
[1672556091146,40.0,9.8038,9.7869,345.4]
[1672556091335,76.59,9.8037,9.7871,345.4]
[1672556091550,40.0,9.8036,9.7874,40.0]
[1672556091758,76.59,9.8035,9.7876,305.4]
[1672556092079,76.59,9.8035,9.7877,96.71]
[1672556092080,40.0,9.8034,9.7877,96.71]
[1672556092266,76.59,9.8033,9.7876,166.3695]
[1672556092479,40.0,9.8032,9.7877,118.7458]
[1672556092705,40.0,9.803,9.7877,118.7458]
[1672556093027,40.0,9.8028,9.7877,118.7458]
[1672556093341,40.0,9.8026,9.7877,118.7458]
[1672556093535,96.6,9.8025,9.7877,118.7458]
[1672556093749,40.0,9.8024,9.7877,118.7458]
[1672556093971,40.0,9.8022,9.7877,118.7458]
[1672556094283,40.0,9.802,9.7877,118.7458]
[1672556094479,40.0,9.8018,9.7877,118.7458]
[1672556094690,96.6,9.8017,9.7877,118.7458]
[1672556094919,40.0,9.8016,9.7877,118.7458]
[1672556095117,40.0,9.8014,9.7877,118.7458]
[1672556095342,40.0,9.8012,9.7877,118.7458]
[1672556095528,96.61,9.8011,9.7878,40.0]
[1672556095740,40.0,9.801,9.7878,40.0]
[1672556095948,40.0,9.8008,9.7878,40.0]
[1672556096177,40.0,9.8006,9.7878,40.0]
[1672556096391,96.61,9.8005,9.7878,40.0]
[1672556096595,40.0,9.8004,9.7878,40.0]
[1672556096919,40.0,9.8002,9.7879,17.44384042]
[1672556097113,40.0,9.8,9.7879,17.44384042]
[1672556097325,96.62,9.7999,9.7879,17.44384042]
[1672556097534,40.0,9.7998,9.7879,17.44384042]
[1672556097746,96.62,9.7997,9.7879,17.44384042]
[1672556097948,40.0,9.7996,9.7879,17.44384042]
[1672556098166,40.0,9.7994,9.7879,17.44384042]
[1672556098377,40.0,9.7992,9.7881,40.0]
[1672556098697,40.0,9.799,9.7881,40.0]
[1672556098894,40.0,9.7988,9.7881,40.0]
[1672556099101,96.63,9.7987,9.7881,40.0]
[1672556099536,40.0,9.7985,9.7881,40.0]
[1672556099746,40.0,9.7983,9.7881,40.0]
[1672556099963,96.63,9.7982,9.7881,40.0]
[1672556100169,120.6297,9.7982,9.7881,40.0]
[1672556100374,40.0,9.7981,9.7881,40.0]
[1672556100591,96.63,9.798,9.7881,40.0]
[1672556100803,40.0,9.7979,9.7881,40.0]
[1672556101015,40.0,9.7977,9.7882,17.43914319]
[1672556101221,76.64,9.7976,9.7882,17.43914319]
[1672556101443,40.0,9.7974,9.7882,17.43914319]
[1672556101633,40.0,9.7972,9.7882,17.43914319]
[1672556101834,40.0,9.797,9.7882,17.43914319]
[1672556102050,96.64,9.7969,9.7877,118.7458]
[1672556102256,40.0,9.7968,9.7877,118.7458]
[1672556102488,96.64,9.7967,9.7877,118.7458]
[1672556102703,40.0,9.7966,9.7877,118.7458]
[1672556102909,96.64,9.7965,9.7877,118.7458]
[1672556103120,40.0,9.7964,9.7877,118.7458]
[1672556103310,96.65,9.7963,9.7877,118.7458]
[1672556103518,40.0,9.7962,9.7877,118.7458]
[1672556103747,40.0,9.796,9.7877,118.7458]
[1672556103951,96.65,9.7959,9.7877,118.7458]
[1672556104168,40.0,9.7958,9.7877,118.7458]
[1672556104377,40.0,9.7956,9.7877,118.7458]
[1672556104697,40.0,9.7954,9.7877,118.7458]
[1672556104909,40.0,9.7952,9.7877,118.7458]
[1672556105123,40.0,9.795,9.7878,17.44540623]
[1672556105326,96.66,9.7949,9.7878,17.44540623]
[1672556105519,40.0,9.7948,9.7878,17.44540623]
[1672556105734,40.0,9.7946,9.7878,17.44540623]
[1672556105950,40.0,9.7944,9.7878,17.44540623]
[1672556106170,96.66,9.7943,9.7878,17.44540623]
[1672556106362,40.0,9.7942,9.7878,17.44540623]
[1672556106577,40.0,9.794,9.7878,17.44540623]
[1672556106780,96.66,9.7939,9.7878,17.44540623]
[1672556106995,40.0,9.7938,9.7878,17.44540623]
[1672556107222,40.0,9.7936,9.7878,17.44540623]
[1672556107433,76.67,9.7935,9.7878,17.44540623]
[1672556107625,40.0,9.7934,9.7878,17.44540623]
[1672556107832,40.0,9.7932,9.7878,17.44540623]
[1672556108055,40.0,9.793,9.7878,17.44540623]
[1672556108271,76.67,9.7929,9.7878,17.44540623]
[1672556108484,40.0,9.7928,9.7878,17.44540623]
[1672556108801,40.0,9.7926,9.7878,17.44540623]
[1672556108990,40.0,9.7924,9.7878,17.44540623]
[1672556109199,40.0,9.7922,9.7878,17.44540623]
[1672556109411,76.68,9.7921,9.7878,17.44540623]
[1672556109636,40.0,9.792,9.7878,17.44540623]
[1672556109951,40.0,9.7918,9.7878,17.44540623]
[1672556110172,40.0,9.7916,9.7878,17.44540623]
[1672556110353,40.0,9.7914,9.7878,17.44540623]
[1672556110569,76.68,9.7913,9.7878,17.44540623]
[1672556110779,40.0,9.7912,9.7878,17.44540623]
[1672556110994,76.69,9.7911,9.7878,17.44540623]
[1672556111204,40.0,9.791,9.7878,17.44540623]
[1672556111519,40.0,9.7908,9.7878,17.44540623]
[1672556112584,76.69,9.7909,9.7878,17.44540623]
[1672556112985,76.68,9.7919,9.7878,17.44540623]
[1672556113190,76.68,9.7919,9.7834,40.0]
[1672556113406,40.0,9.7918,9.7834,40.0]
[1672556113622,40.0,9.7916,9.7834,40.0]
[1672556113951,40.0,9.7914,9.7834,40.0]
[1672556114148,76.68,9.7913,9.7835,41.39016622]
[1672556114359,76.68,9.7915,9.7835,41.39016622]
[1672556114571,40.0,9.7924,9.7836,63.8774]
[1672556114783,40.0,9.7922,9.7836,63.8774]
[1672556115101,76.68,9.7921,9.7836,63.8774]
[1672556115311,40.0,9.7924,9.7837,23.8774]
[1672556115504,76.68,9.7923,9.7837,23.8774]
[1672556115720,40.0,9.7922,9.7837,23.8774]
[1672556115930,40.0,9.792,9.7838,23.2131]
[1672556116157,76.68,9.7919,9.7838,23.2131]
[1672556116360,40.0,9.7918,9.7838,23.2131]
[1672556116576,40.0,9.7916,9.7839,23.2131]
[1672556116782,40.0,9.7914,9.7839,23.2131]
[1672556116974,76.68,9.7913,9.7839,40.71959768]
[1672556118033,40.0,9.7914,9.7839,40.71959768]
[1672556118242,40.0,9.7912,9.7839,40.71959768]
[1672556118456,76.69,9.7911,9.7839,40.71959768]
[1672556118664,76.68,9.7917,9.7839,40.71959768]
[1672556118870,40.0,9.7918,9.7839,40.71959768]
[1672556119083,76.68,9.7917,9.784,22.6347]
[1672556119300,40.0,9.7916,9.784,22.6347]
[1672556119600,40.0,9.7914,9.784,22.6347]
[1672556119815,40.0,9.7912,9.784,22.6347]
[1672556120031,76.69,9.7911,9.784,22.6347]
[1672556120461,76.68,9.7913,9.784,22.6347]
[1672556120885,40.0,9.7916,9.784,22.6347]
[1672556121095,40.0,9.7914,9.7841,17.5033636]
[1672556121313,76.68,9.7913,9.7841,17.5033636]
[1672556121519,40.0,9.7912,9.7841,17.5033636]
[1672556121731,40.0,9.791,9.7841,17.3963134]
[1672556121935,76.69,9.7909,9.7841,17.3963134]
[1672556122140,76.68,9.7915,9.7841,17.3963134]
[1672556122350,76.03241467,9.7973,9.7841,17.3963134]
[1672556122351,76.68,9.7917,9.7841,17.3963134]
[1672556122551,40.0,9.7916,9.7841,17.3963134]
[1672556122767,76.68,9.7915,9.7841,17.3963134]
[1672556122987,76.68,9.7915,9.7841,39.9733134]
[1672556123630,40.0,9.7914,9.7841,39.9733134]
[1672556123840,40.0,9.7912,9.7841,39.9733134]
[1672556124155,76.69,9.7911,9.7841,39.9733134]
[1672556124462,40.0,9.791,9.7841,39.9733134]
[1672556124784,40.0,9.7908,9.7841,39.9733134]
[1672556124973,76.69,9.7907,9.7841,39.9733134]
[1672556125185,76.69,9.7911,9.7841,39.9733134]
[1672556125604,40.0,9.7912,9.7841,39.9733134]
[1672556125818,76.69,9.7911,9.7841,39.9733134]
[1672556126567,76.68,9.7921,9.7841,39.9733134]
[1672556126963,40.0,9.792,9.7841,39.9733134]
[1672556127173,40.0,9.7918,9.7841,39.9733134]
[1672556127385,40.0,9.7916,9.7842,23.7132]
[1672556127596,76.68,9.7915,9.7842,23.7132]
[1672556128024,76.68,9.7915,9.7842,41.20607575]
[1672556128025,40.0,9.7914,9.7842,41.20607575]
[1672556128233,76.68,9.7913,9.7842,41.20607575]
[1672556128863,76.68,9.7915,9.7842,41.20607575]
[1672556129921,40.0,9.7918,9.7842,41.20607575]
[1672556129922,76.68,9.7917,9.7842,41.20607575]
[1672556130135,40.0,9.7916,9.7842,41.20607575]
[1672556130341,76.68,9.7915,9.7842,41.20607575]
[1672556130754,40.0,9.7916,9.7842,41.20607575]
[1672556130972,76.68,9.7915,9.7842,41.20607575]
[1672556131183,76.68,9.7921,9.7842,41.20607575]
[1672556131712,76.68,9.7923,9.7843,24.3576]
[1672556131918,76.67,9.7933,9.7844,40.0]
[1672556132129,76.67,9.7938,9.7844,40.0]
[1672556132555,76.67,9.7938,9.7845,24.3576]
[1672556133077,76.67,9.7938,9.7847,40.0]
[1672556133288,40.0,9.7937,9.7847,40.0]
[1672556133494,76.67,9.7936,9.7847,40.0]
[1672556133710,76.67,9.7936,9.7848,24.3576]
[1672556133924,76.67,9.7938,9.7848,41.84107448]
[1672556134345,76.67,9.7938,9.7849,24.3576]
[1672556134538,40.0,9.7937,9.7849,24.3576]
[1672556134748,76.67,9.7936,9.7849,24.3576]
[1672556134954,76.67,9.7936,9.785,24.8122]
[1672556135379,40.0,9.7935,9.785,24.8122]
[1672556135694,76.67,9.7934,9.7851,24.8122]
[1672556136031,40.0,9.7933,9.7851,24.8122]
[1672556136228,76.67,9.7932,9.7852,24.8122]
[1672556136439,40.0,9.7931,9.7852,24.8122]
[1672556136649,76.67,9.793,9.7853,40.0]
[1672556136865,76.67,9.7938,9.7853,64.8122]
[1672556137587,76.67,9.7938,9.7854,24.8122]
[1672556138002,76.67,9.7938,9.7854,42.28627435]
[1672556138218,76.67,9.7938,9.7856,40.0]
[1672556138855,76.67,9.7938,9.7857,23.0344]
[1672556139479,76.67,9.7938,9.7858,23.0344]
[1672556140105,76.67,9.7938,9.786,40.0]
[1672556140754,76.67,9.7938,9.7861,23.0344]
[1672556141369,76.67,9.7938,9.7862,23.7952]
[1672556142009,76.67,9.7938,9.7863,17.45997633]
[1672556142441,76.67,9.7938,9.7864,40.0]
[1672556144201,76.67,9.7938,9.7863,41.25517633]
[1672556144418,40.0,9.7937,9.7863,41.25517633]
[1672556144623,76.67,9.7936,9.7863,41.25517633]
[1672556144834,40.0,9.7935,9.7863,41.25517633]
[1672556145056,76.67,9.7934,9.7863,41.25517633]
[1672556145261,40.0,9.7933,9.7863,41.25517633]
[1672556145463,76.67,9.7932,9.7863,41.25517633]
[1672556145677,76.67,9.7934,9.7863,41.25517633]
[1672556146101,40.0,9.7933,9.7863,41.25517633]
[1672556146321,76.67,9.7932,9.7863,41.25517633]
[1672556147060,40.0,9.7937,9.7863,41.25517633]
[1672556147268,76.67,9.7936,9.7863,41.25517633]
[1672556147809,76.67,9.7938,9.7863,41.25517633]
[1672556148446,76.03241467,9.7934,9.7863,41.25517633]
[1672556148630,152.70241467,9.7933,9.7863,41.25517633]
[1672556149594,152.70241467,9.7933,9.7864,40.0]
[1672556149786,152.70241467,9.7933,9.7863,41.25517633]
[1672556149997,152.70241467,9.7933,9.7864,17.45841004]
[1672556150963,40.0,9.7932,9.7864,17.45841004]
[1672556151168,40.0,9.793,9.7864,17.45841004]
[1672556151378,40.0,9.7928,9.7864,17.45841004]
[1672556151574,76.67,9.7927,9.7864,17.45841004]
[1672556151784,40.0,9.7926,9.7864,17.45841004]
[1672556152007,40.0,9.7924,9.7864,17.45841004]
[1672556152222,76.68,9.7923,9.7864,17.45841004]
[1672556152416,40.0,9.7922,9.7864,17.45841004]
[1672556152626,40.0,9.792,9.7864,17.45841004]
[1672556152860,76.68,9.7919,9.7864,17.45841004]
[1672556153169,40.0,9.7918,9.7864,17.45841004]
[1672556153482,40.0,9.7916,9.7864,17.45841004]
[1672556153692,40.0,9.7914,9.7864,17.45841004]
[1672556153907,76.68,9.7913,9.7864,17.45841004]
[1672556154114,40.0,9.7912,9.7864,17.45841004]
[1672556154328,40.0,9.791,9.7864,17.45841004]
[1672556154518,76.69,9.7909,9.7864,17.45841004]
[1672556154730,40.0,9.7908,9.7864,17.45841004]
[1672556155062,76.69,9.7907,9.7864,17.45841004]
[1672556155258,40.0,9.7906,9.7864,17.45841004]
[1672556155464,76.69,9.7905,9.7864,17.45841004]
[1672556155671,40.0,9.7912,9.7864,17.45841004]
[1672556155672,76.69,9.7909,9.7864,17.45841004]
[1672556156001,40.0,9.791,9.7864,17.45841004]
[1672556156193,76.69,9.7909,9.7864,17.45841004]
[1672556157038,40.0,9.7914,9.7864,17.45841004]
[1672556157244,76.68,9.7913,9.7864,17.45841004]
[1672556157672,40.0,9.7912,9.7864,17.45841004]
[1672556157898,76.69,9.7911,9.7864,17.45841004]
[1672556159266,76.68,9.7913,9.7864,17.45841004]
[1672556160212,76.68,9.7915,9.7864,17.45841004]
[1672556160423,40.0,9.7914,9.7864,17.45841004]
[1672556160635,76.68,9.7913,9.7864,17.45841004]
[1672556161276,40.0,9.7914,9.7864,17.45841004]
[1672556161495,76.68,9.7913,9.7864,17.45841004]
[1672556161690,40.0,9.7912,9.7864,17.45841004]
[1672556161893,76.69,9.7911,9.7864,17.45841004]
[1672556162328,40.0,9.7918,9.7864,17.45841004]
[1672556162544,76.68,9.7917,9.7864,17.45841004]
[1672556162745,76.68,9.7919,9.7864,17.45841004]
[1672556163491,76.68,9.7923,9.7864,17.45841004]
[1672556163902,40.0,9.7924,9.7864,17.45841004]
[1672556164226,40.0,9.7922,9.7864,17.45841004]
[1672556164435,76.68,9.7921,9.7864,17.45841004]
[1672556165062,76.68,9.7923,9.7864,17.45841004]
[1672556165803,40.0,9.7922,9.7864,17.45841004]
[1672556165991,76.68,9.7921,9.7864,17.45841004]
[1672556166217,40.0,9.792,9.7864,17.45841004]
[1672556166427,76.68,9.7919,9.7864,17.45841004]
[1672556166645,76.68,9.7925,9.7864,17.45841004]
[1672556167075,40.0,9.7927,9.7864,17.45841004]
[1672556167291,40.0,9.7925,9.7864,17.45841004]
[1672556167499,76.68,9.7924,9.7864,17.45841004]
[1672556168334,40.0,9.7923,9.7864,17.45841004]
[1672556168652,40.0,9.7921,9.7864,17.45841004]
[1672556168970,76.68,9.792,9.7864,17.45841004]
[1672556170843,76.68,9.7922,9.7864,17.45841004]
[1672556171803,76.67,9.7928,9.7864,17.45841004]
[1672556173057,76.67,9.7929,9.7864,17.45841004]
[1672556175175,40.0,9.7928,9.7864,17.45841004]
[1672556175491,40.0,9.7926,9.7864,17.45841004]
[1672556175691,76.68,9.7925,9.7864,17.45841004]
[1672556176431,76.67,9.7927,9.7864,17.45841004]
[1672556176620,76.67,9.7929,9.7864,17.45841004]
[1672556179807,76.57039444,9.7929,9.7865,40.0]
[1672556181070,76.57039444,9.7929,9.7866,17.45527756]
[1672556182434,76.57039444,9.7929,9.7867,40.0]
[1672556183056,76.66,9.7948,9.7867,40.0]
[1672556183378,76.03241467,9.7978,9.7867,40.0]
[1672556183379,76.67,9.7938,9.7867,40.0]
[1672556183596,20.0,9.7938,9.7867,40.0]
[1672556184012,20.0,9.7938,9.7868,17.45214521]
[1672556184417,20.0,9.7941,9.7868,17.45214521]
[1672556184626,76.66,9.794,9.7868,17.45214521]
[1672556184859,20.0,9.7939,9.7868,17.45214521]
[1672556185580,20.0,9.7941,9.7868,17.45214521]
[1672556185902,76.66,9.794,9.7868,17.45214521]
[1672556186114,20.0,9.7939,9.7868,17.45214521]
[1672556186838,20.0,9.7941,9.7868,17.45214521]
[1672556187044,76.66,9.794,9.7868,17.45214521]
[1672556187268,20.0,9.7939,9.7868,17.45214521]
[1672556187901,20.0,9.7941,9.7868,17.45214521]
[1672556188109,76.66,9.794,9.7868,17.45214521]
[1672556188316,20.0,9.7939,9.7868,17.45214521]
[1672556189063,20.0,9.7941,9.7868,17.45214521]
[1672556189249,76.66,9.794,9.7868,17.45214521]
[1672556189460,20.0,9.7939,9.7868,17.45214521]
[1672556189689,76.67,9.7938,9.7868,17.45214521]
[1672556190947,76.67,9.7938,9.7864,24.0466]
[1672556191984,76.67,9.7938,9.7865,17.45684378]
[1672556193870,76.67,9.7938,9.7866,40.0]
[1672556195055,76.67,9.7938,9.7867,17.45371137]
[1672556206303,40.0,9.7937,9.7867,17.45371137]
[1672556206512,40.0,9.7935,9.7867,17.45371137]
[1672556206723,76.67,9.7934,9.7867,17.45371137]
[1672556206933,40.0,9.7933,9.7864,24.0466]
[1672556207235,40.0,9.7931,9.7864,24.0466]
[1672556207442,40.0,9.7929,9.7864,24.0466]
[1672556207673,40.0,9.7927,9.7864,24.0466]
[1672556207884,76.67,9.7926,9.7864,24.0466]
[1672556208093,76.67,9.7926,9.7865,17.45684378]
[1672556208498,76.67,9.7928,9.7865,17.45684378]
[1672556208928,40.0,9.7933,9.7865,17.45684378]
[1672556209133,76.67,9.7932,9.7865,17.45684378]
[1672556209974,40.0,9.7931,9.7865,17.45684378]
[1672556210188,76.67,9.793,9.7865,17.45684378]
[1672556211248,76.67,9.7936,9.7865,17.45684378]
[1672556211470,76.67,9.7938,9.7865,17.45684378]
[1672556212721,40.0,9.7937,9.7865,17.45684378]
[1672556213043,76.67,9.7936,9.7865,17.45684378]
[1672556213240,76.67,9.7938,9.7865,17.45684378]
[1672556217249,76.67,9.7938,9.7866,40.0]
[1672556218079,76.66,9.7941,9.7867,17.45371137]
[1672556218402,20.0,9.7938,9.7867,17.45371137]
[1672556218599,76.66,9.7939,9.7867,17.45371137]
[1672556218809,20.0,9.7938,9.7867,17.45371137]
[1672556219440,20.0,9.794,9.7867,17.45371137]
[1672556219652,76.66,9.7939,9.7867,17.45371137]
[1672556219856,20.0,9.7938,9.7867,17.45371137]
[1672556220611,20.0,9.794,9.7867,17.45371137]
[1672556220823,76.66,9.7939,9.7867,17.45371137]
[1672556221035,20.0,9.7938,9.7867,17.45371137]
[1672556221454,20.0,9.794,9.7867,17.45371137]
[1672556221767,76.66,9.7939,9.7867,17.45371137]
[1672556222084,20.0,9.7938,9.7867,17.45371137]
[1672556222514,20.0,9.794,9.7867,17.45371137]
[1672556222825,76.66,9.7939,9.7867,17.45371137]
[1672556223013,20.0,9.7938,9.7867,17.45371137]
[1672556223549,20.0,9.794,9.7867,17.45371137]
[1672556223746,76.66,9.7939,9.7867,17.45371137]
[1672556223957,20.0,9.7938,9.7867,17.45371137]
[1672556224600,20.0,9.794,9.7869,305.4]
[1672556224814,843.72371086,9.8008,9.7868,76.72]
[1672556224815,76.61,9.8007,9.7871,305.4]
[1672556225036,76.61,9.8007,9.7873,305.4]
[1672556225337,76.6,9.802,9.7876,40.0]
[1672556225656,40.0,9.8019,9.7878,305.4]
[1672556225866,76.6,9.8018,9.788,305.4]
[1672556226179,40.0,9.8021,9.7883,40.0]
[1672556226378,76.6,9.802,9.7886,40.0]
[1672556226596,40.0,9.802,9.7889,40.0]
[1672556226914,40.0,9.8018,9.7892,40.0]
[1672556227111,76.6,9.8017,9.7921,17.36918455]
[1672556227321,76.03241467,9.8022,9.7922,162.6442]
[1672556227322,76.6,9.8019,9.7922,162.6442]
[1672556227535,76.6,9.8021,9.7923,40.0]
[1672556227955,40.0,9.802,9.7924,162.6442]
[1672556228281,76.6,9.8019,9.7924,162.6442]
[1672556228487,76.6,9.8019,9.7926,40.0]
[1672556228808,76.6,9.8022,9.7926,40.0]
[1672556229006,76.6,9.8022,9.7927,22.805]
[1672556229652,76.6,9.8022,9.7929,40.0]
[1672556230268,40.0,9.8021,9.793,22.8228]
[1672556230592,76.6,9.802,9.793,22.8228]
[1672556230916,76.6,9.802,9.7931,22.8228]
[1672556231323,76.6,9.802,9.7932,22.8228]
[1672556231855,40.0,9.8021,9.7933,22.8228]
[1672556232073,76.6,9.802,9.7933,22.8228]
[1672556232261,40.0,9.8021,9.7933,22.8228]
[1672556232468,40.0,9.8019,9.7934,22.8228]
[1672556232704,76.6,9.8018,9.7934,22.8228]
[1672556233023,40.0,9.8017,9.7934,22.8228]
[1672556233226,76.6,9.8016,9.7935,24.4298]
[1672556234067,76.6,9.8018,9.7936,24.4298]
[1672556234476,76.6,9.8018,9.7937,24.4298]
[1672556235016,40.0,9.8017,9.7937,41.77395746]
[1672556235229,76.6,9.8016,9.7938,24.4298]
[1672556235432,40.0,9.8019,9.7938,24.4298]
[1672556235755,76.6,9.8018,9.7938,24.4298]
[1672556235959,76.6,9.8018,9.7939,23.1043]
[1672556236171,76.6,9.8021,9.7939,23.1043]
[1672556236578,76.6,9.8021,9.794,23.1043]
[1672556236788,40.0,9.802,9.794,23.1043]
[1672556237011,76.6,9.8019,9.794,23.1043]
[1672556237230,76.6,9.8019,9.7941,23.1043]